[Event "Titled Tuesday Blitz January 10 Early 2023"]
[White "Topalov, Aleksandar"]
[Black "Skurikhin, Dmitrij"]
[WhiteFideId "925659"]
[BlackFideId "4161297"]
[WhiteElo "2233"]
[BlackElo "2297"]
[Result "1-0"]
[Round "07"]
[TimeControl "180+2"]
[Date "2023.01.10"]
[WhiteClock "0:01:07"]
[BlackClock "0:00:44"]

1. b3 {[%clk 0:03:00]}  d5 {[%clk 0:02:59]} 2. Bb2 {[%clk 0:03:00]}  c5 {[%clk 0:03:00]} 3. e3 {[%clk 0:02:59]}  a6 {[%clk 0:03:00]} 4. f4 {[%clk 0:02:59]}  Nc6 {[%clk 0:02:57]} 5. Nf3 {[%clk 0:02:57]}  Bg4 {[%clk 0:02:56]} 6. Be2 {[%clk 0:02:57]}  Bxf3 {[%clk 0:02:54]} 7. Bxf3 {[%clk 0:02:55]}  e6 {[%clk 0:02:55]} 8. O-O {[%clk 0:02:55]}  Nf6 {[%clk 0:02:55]} 9. d3 {[%clk 0:02:55]}  Bd6 {[%clk 0:02:54]} 10. Nd2 {[%clk 0:02:54]}  Qc7 {[%clk 0:02:53]} 11. g3 {[%clk 0:02:51]}  h5 {[%clk 0:02:52]} 12. e4 {[%clk 0:02:50]}  dxe4 {[%clk 0:02:50]} 13. dxe4 {[%clk 0:02:42]}  Be7 {[%clk 0:02:48]} 14. Nc4 {[%clk 0:02:35]}  Rd8 {[%clk 0:02:42]} 15. Qe2 {[%clk 0:02:32]}  b5 {[%clk 0:02:40]} 16. Ne5 {[%clk 0:02:30]}  Nd4 {[%clk 0:02:39]} 17. Bxd4 {[%clk 0:02:27]}  cxd4 {[%clk 0:02:34]} 18. Rad1 {[%clk 0:02:18]}  h4 {[%clk 0:02:33]} 19. g4 {[%clk 0:02:16]}  Bd6 {[%clk 0:02:18]} 20. Nxf7 {[%clk 0:02:08]}  Kxf7 {[%clk 0:02:18]} 21. e5 {[%clk 0:02:08]}  Bc5 {[%clk 0:02:17]} 22. Rd3 {[%clk 0:01:49]}  Nd5 {[%clk 0:02:16]} 23. Be4 {[%clk 0:01:46]}  Ke7 {[%clk 0:02:00]} 24. Bg6 {[%clk 0:01:35]}  Nb4 {[%clk 0:01:49]} 25. f5 {[%clk 0:01:30]}  Nxd3 {[%clk 0:01:48]} 26. f6+ {[%clk 0:01:26]}  gxf6 {[%clk 0:01:48]} 27. exf6+ {[%clk 0:01:26]}  Kf8 {[%clk 0:01:31]} 28. cxd3 {[%clk 0:01:25]}  Qd6 {[%clk 0:01:24]} 29. g5 {[%clk 0:01:22]}  Rg8 {[%clk 0:01:23]} 30. Qh5 {[%clk 0:01:21]}  Rd7 {[%clk 0:00:57]} 31. Qh6+ {[%clk 0:01:21]}  Rdg7 {[%clk 0:00:54]} 32. fxg7+ {[%clk 0:01:21]}  Ke7 {[%clk 0:00:55]} 33. Bh7 {[%clk 0:01:13]}  Rd8 {[%clk 0:00:45]} 34. g8=Q {[%clk 0:01:08]}  Rxg8 {[%clk 0:00:44]} 35. Bxg8 {[%clk 0:01:08]}  Qe5 {[%clk 0:00:44]} 36. Qf6+ {[%clk 0:01:07]} 1-0


[Site "https://www.chess.com"]

[Event "Titled Tuesday Blitz January 10 Early 2023"]
[White "Boraso, Alessio"]
[Black "Ivanova, Karina"]
[WhiteFideId "848077"]
[BlackFideId "24139750"]
[WhiteElo "2316"]
[BlackElo "2085"]
[Result "1-0"]
[Round "07"]
[TimeControl "180+2"]
[Date "2023.01.10"]
[WhiteClock "0:00:18"]
[BlackClock "0:00:04"]

1. e4 {[%clk 0:03:00]}  c6 {[%clk 0:02:59]} 2. d4 {[%clk 0:03:00]}  d5 {[%clk 0:02:59]} 3. Nc3 {[%clk 0:03:01]}  dxe4 {[%clk 0:02:59]} 4. f3 {[%clk 0:03:02]}  e5 {[%clk 0:02:57]} 5. dxe5 {[%clk 0:03:01]}  Qxd1+ {[%clk 0:02:55]} 6. Nxd1 {[%clk 0:03:01]}  exf3 {[%clk 0:02:45]} 7. Nxf3 {[%clk 0:03:02]}  Bc5 {[%clk 0:02:40]} 8. Be3 {[%clk 0:03:02]}  Nd7 {[%clk 0:02:34]} 9. Bc4 {[%clk 0:02:57]}  Ne7 {[%clk 0:02:27]} 10. e6 {[%clk 0:02:50]}  fxe6 {[%clk 0:02:26]} 11. Bxe6 {[%clk 0:02:51]}  Bxe3 {[%clk 0:02:26]} 12. Nxe3 {[%clk 0:02:52]}  Ne5 {[%clk 0:02:16]} 13. Nxe5 {[%clk 0:02:45]}  Bxe6 {[%clk 0:02:15]} 14. O-O-O {[%clk 0:02:45]}  O-O {[%clk 0:02:12]} 15. Rd2 {[%clk 0:02:36]}  Rad8 {[%clk 0:02:07]} 16. Rhd1 {[%clk 0:02:36]}  Rxd2 {[%clk 0:02:02]} 17. Rxd2 {[%clk 0:02:37]}  Nd5 {[%clk 0:02:01]} 18. Nxd5 {[%clk 0:02:31]}  Rf1+ {[%clk 0:01:55]} 19. Rd1 {[%clk 0:02:31]}  Rxd1+ {[%clk 0:01:54]} 20. Kxd1 {[%clk 0:02:32]}  Bxd5 {[%clk 0:01:55]} 21. g3 {[%clk 0:02:32]}  Kf8 {[%clk 0:01:52]} 22. c4 {[%clk 0:02:26]}  Be6 {[%clk 0:01:49]} 23. Kd2 {[%clk 0:02:26]}  Ke7 {[%clk 0:01:48]} 24. Ke3 {[%clk 0:02:27]}  Kd6 {[%clk 0:01:44]} 25. Ke4 {[%clk 0:02:26]}  c5 {[%clk 0:01:41]} 26. a3 {[%clk 0:02:12]}  a5 {[%clk 0:01:37]} 27. h4 {[%clk 0:02:01]}  h6 {[%clk 0:01:35]} 28. Kf4 {[%clk 0:01:54]}  g5+ {[%clk 0:01:29]} 29. hxg5 {[%clk 0:01:55]}  hxg5+ {[%clk 0:01:29]} 30. Ke4 {[%clk 0:01:56]}  b6 {[%clk 0:01:24]} 31. Nf3 {[%clk 0:01:54]}  Bxc4 {[%clk 0:01:16]} 32. Nxg5 {[%clk 0:01:54]}  Bg8 {[%clk 0:01:13]} 33. Nf3 {[%clk 0:01:45]}  b5 {[%clk 0:01:12]} 34. Kd3 {[%clk 0:01:37]}  b4 {[%clk 0:01:03]} 35. Nd2 {[%clk 0:01:31]}  bxa3 {[%clk 0:00:56]} 36. bxa3 {[%clk 0:01:31]}  Kc6 {[%clk 0:00:53]} 37. Kc3 {[%clk 0:01:17]}  Kb5 {[%clk 0:00:51]} 38. Ne4 {[%clk 0:01:15]}  Bd5 {[%clk 0:00:34]} 39. Nf6 {[%clk 0:01:11]}  Bf7 {[%clk 0:00:33]} 40. Ne4 {[%clk 0:01:09]}  Bd5 {[%clk 0:00:32]} 41. Nf6 {[%clk 0:01:04]}  Bf7 {[%clk 0:00:31]} 42. Nd7 {[%clk 0:01:05]}  Be6 {[%clk 0:00:27]} 43. Ne5 {[%clk 0:01:01]}  Ka4 {[%clk 0:00:21]} 44. Kb2 {[%clk 0:01:00]}  c4 {[%clk 0:00:18]} 45. g4 {[%clk 0:00:47]}  c3+ {[%clk 0:00:15]} 46. Kxc3 {[%clk 0:00:47]}  Kxa3 {[%clk 0:00:15]} 47. g5 {[%clk 0:00:47]}  a4 {[%clk 0:00:14]} 48. g6 {[%clk 0:00:32]}  Ka2 {[%clk 0:00:11]} 49. g7 {[%clk 0:00:33]}  a3 {[%clk 0:00:09]} 50. Kc2 {[%clk 0:00:34]}  Bf5+ {[%clk 0:00:08]} 51. Kc1 {[%clk 0:00:33]}  Be6 {[%clk 0:00:08]} 52. Nd3 {[%clk 0:00:28]}  Bg8 {[%clk 0:00:06]} 53. Nc5 {[%clk 0:00:26]}  Bf7 {[%clk 0:00:04]} 54. Kc2 {[%clk 0:00:27]}  Bg6+ {[%clk 0:00:04]} 55. Nd3 {[%clk 0:00:18]} 1-0


[Site "https://www.chess.com"]

[Event "Titled Tuesday Blitz January 10 Early 2023"]
[White "Cardozo Munar, Carlos Eduardo"]
[Black "Vifleemskaia, Svetlana"]
[WhiteFideId "4409477"]
[BlackFideId "4129490"]
[WhiteElo "2043"]
[BlackElo "1971"]
[Result "1-0"]
[Round "07"]
[TimeControl "180+2"]
[Date "2023.01.10"]
[WhiteClock "0:01:17"]
[BlackClock "0:00:01"]

1. d4 {[%clk 0:03:00]}  Nf6 {[%clk 0:02:59]} 2. Bg5 {[%clk 0:03:00]}  Ne4 {[%clk 0:02:58]} 3. h4 {[%clk 0:02:57]}  d5 {[%clk 0:02:55]} 4. Nd2 {[%clk 0:02:57]}  Bf5 {[%clk 0:02:45]} 5. e3 {[%clk 0:02:56]}  Nxd2 {[%clk 0:02:43]} 6. Qxd2 {[%clk 0:02:56]}  h6 {[%clk 0:02:43]} 7. Bf4 {[%clk 0:02:56]}  e6 {[%clk 0:02:42]} 8. Bd3 {[%clk 0:02:56]}  Bxd3 {[%clk 0:02:39]} 9. cxd3 {[%clk 0:02:56]}  Bd6 {[%clk 0:02:39]} 10. Ne2 {[%clk 0:02:55]}  c6 {[%clk 0:02:36]} 11. e4 {[%clk 0:02:55]}  Na6 {[%clk 0:02:32]} 12. a3 {[%clk 0:02:54]}  Nc7 {[%clk 0:02:22]} 13. Rc1 {[%clk 0:02:50]}  Qe7 {[%clk 0:02:14]} 14. b4 {[%clk 0:02:48]}  Bxf4 {[%clk 0:02:12]} 15. Nxf4 {[%clk 0:02:45]}  Nb5 {[%clk 0:02:12]} 16. Qb2 {[%clk 0:02:32]}  Qf6 {[%clk 0:02:02]} 17. Ne2 {[%clk 0:02:32]}  Rd8 {[%clk 0:01:45]} 18. a4 {[%clk 0:02:31]}  Nc7 {[%clk 0:01:36]} 19. b5 {[%clk 0:02:31]}  dxe4 {[%clk 0:01:16]} 20. dxe4 {[%clk 0:02:18]}  O-O {[%clk 0:01:08]} 21. bxc6 {[%clk 0:02:12]}  bxc6 {[%clk 0:01:01]} 22. Rxc6 {[%clk 0:02:12]}  Ne8 {[%clk 0:00:55]} 23. e5 {[%clk 0:02:09]}  Qg6 {[%clk 0:00:46]} 24. Qc2 {[%clk 0:02:09]}  Qxg2 {[%clk 0:00:43]} 25. Rg1 {[%clk 0:02:09]}  Qf3 {[%clk 0:00:39]} 26. Rg3 {[%clk 0:02:03]}  Qh1+ {[%clk 0:00:36]} 27. Rg1 {[%clk 0:01:59]}  Qxh4 {[%clk 0:00:35]} 28. Rc3 {[%clk 0:01:57]}  g6 {[%clk 0:00:32]} 29. Rcg3 {[%clk 0:01:55]}  Ng7 {[%clk 0:00:30]} 30. Rg4 {[%clk 0:01:52]}  Qe7 {[%clk 0:00:22]} 31. Qd2 {[%clk 0:01:50]}  Nf5 {[%clk 0:00:19]} 32. Qf4 {[%clk 0:01:40]}  Kh7 {[%clk 0:00:16]} 33. Rh1 {[%clk 0:01:35]}  Qb4+ {[%clk 0:00:08]} 34. Kf1 {[%clk 0:01:35]}  Qc4 {[%clk 0:00:04]} 35. Rgh4 {[%clk 0:01:27]}  h5 {[%clk 0:00:01]} 36. Rxh5+ {[%clk 0:01:21]}  gxh5 {[%clk 0:00:01]} 37. Rxh5+ {[%clk 0:01:20]}  Kg8 {[%clk 0:00:01]} 38. Rg5+ {[%clk 0:01:17]}  Ng7 {[%clk 0:00:01]} 39. Qf6 {[%clk 0:01:17]} 1-0


[Site "https://www.chess.com"]

[Event "Titled Tuesday Blitz January 10 Early 2023"]
[White "Johnson, Ben"]
[Black "Matveeva, Olga"]
[WhiteFideId "2010917"]
[BlackFideId "24107018"]
[WhiteElo "1961"]
[BlackElo "2128"]
[Result "1-0"]
[Round "07"]
[TimeControl "180+2"]
[Date "2023.01.10"]
[WhiteClock "0:00:02"]
[BlackClock "0:00:01"]

1. Nf3 {[%clk 0:03:00]}  d5 {[%clk 0:02:59]} 2. e3 {[%clk 0:02:59]}  Nf6 {[%clk 0:02:59]} 3. c4 {[%clk 0:02:59]}  e6 {[%clk 0:02:59]} 4. b3 {[%clk 0:02:57]}  Be7 {[%clk 0:02:58]} 5. Bb2 {[%clk 0:02:57]}  O-O {[%clk 0:02:59]} 6. Nc3 {[%clk 0:02:55]}  c5 {[%clk 0:02:58]} 7. cxd5 {[%clk 0:02:52]}  Nxd5 {[%clk 0:02:59]} 8. Qc2 {[%clk 0:02:46]}  Nc6 {[%clk 0:02:55]} 9. Be2 {[%clk 0:02:43]}  Ncb4 {[%clk 0:02:50]} 10. Qb1 {[%clk 0:02:43]}  Bf6 {[%clk 0:02:47]} 11. O-O {[%clk 0:02:38]}  b6 {[%clk 0:02:44]} 12. a3 {[%clk 0:02:35]}  Nc6 {[%clk 0:02:43]} 13. Bc4 {[%clk 0:02:05]}  Nxc3 {[%clk 0:02:38]} 14. Bxc3 {[%clk 0:02:03]}  Bb7 {[%clk 0:02:34]} 15. Bd3 {[%clk 0:01:36]}  g6 {[%clk 0:02:21]} 16. Be4 {[%clk 0:01:36]}  Rc8 {[%clk 0:02:08]} 17. Rd1 {[%clk 0:01:33]}  Qe7 {[%clk 0:01:55]} 18. Qb2 {[%clk 0:01:29]}  Bxc3 {[%clk 0:01:53]} 19. Qxc3 {[%clk 0:01:29]}  Rfd8 {[%clk 0:01:51]} 20. Rac1 {[%clk 0:01:25]}  Na5 {[%clk 0:01:27]} 21. Bxb7 {[%clk 0:01:23]}  Nxb7 {[%clk 0:01:27]} 22. Qe5 {[%clk 0:01:19]}  Rd5 {[%clk 0:01:21]} 23. Qe4 {[%clk 0:01:17]}  Rcd8 {[%clk 0:01:19]} 24. d3 {[%clk 0:01:14]}  Nd6 {[%clk 0:01:17]} 25. Qa4 {[%clk 0:01:06]}  Ne8 {[%clk 0:01:00]} 26. g3 {[%clk 0:00:48]}  Rxd3 {[%clk 0:00:56]} 27. Rxd3 {[%clk 0:00:47]}  Rxd3 {[%clk 0:00:57]} 28. Ne5 {[%clk 0:00:45]}  Rd2 {[%clk 0:00:50]} 29. Qc6 {[%clk 0:00:27]}  Nf6 {[%clk 0:00:38]} 30. b4 {[%clk 0:00:23]}  cxb4 {[%clk 0:00:28]} 31. axb4 {[%clk 0:00:24]}  Kg7 {[%clk 0:00:16]} 32. Qc8 {[%clk 0:00:17]}  Qd8 {[%clk 0:00:10]} 33. Qb7 {[%clk 0:00:12]}  Rd1+ {[%clk 0:00:10]} 34. Rxd1 {[%clk 0:00:07]}  Qxd1+ {[%clk 0:00:11]} 35. Kg2 {[%clk 0:00:07]}  Qd5+ {[%clk 0:00:11]} 36. Qxd5 {[%clk 0:00:05]}  Nxd5 {[%clk 0:00:12]} 37. b5 {[%clk 0:00:06]}  Nc3 {[%clk 0:00:12]} 38. Kf3 {[%clk 0:00:01]}  Nxb5 {[%clk 0:00:12]} 39. Ke4 {[%clk 0:00:02]}  Kf6 {[%clk 0:00:11]} 40. Nc6 {[%clk 0:00:02]}  a5 {[%clk 0:00:10]} 41. Kd3 {[%clk 0:00:02]}  e5 {[%clk 0:00:09]} 42. Kc4 {[%clk 0:00:03]}  Nd6+ {[%clk 0:00:09]} 43. Kd5 {[%clk 0:00:03]}  Nb7 {[%clk 0:00:08]} 44. Nxe5 {[%clk 0:00:03]}  Ke7 {[%clk 0:00:08]} 45. Nc4 {[%clk 0:00:03]}  b5 {[%clk 0:00:07]} 46. Nb6 {[%clk 0:00:02]}  a4 {[%clk 0:00:07]} 47. Kc6 {[%clk 0:00:01]}  a3 {[%clk 0:00:06]} 48. Nd5+ {[%clk 0:00:01]}  Ke6 {[%clk 0:00:06]} 49. Nb4 {[%clk 0:00:02]}  Na5+ {[%clk 0:00:03]} 50. Kxb5 {[%clk 0:00:01]}  Nb3 {[%clk 0:00:03]} 51. Ka4 {[%clk 0:00:01]}  Nd2 {[%clk 0:00:02]} 52. Kxa3 {[%clk 0:00:01]}  Ne4 {[%clk 0:00:02]} 53. Nd3 {[%clk 0:00:01]}  Kd5 {[%clk 0:00:02]} 54. Kb3 {[%clk 0:00:01]}  f5 {[%clk 0:00:01]} 55. Kc2 {[%clk 0:00:02]} 1-0


[Site "https://www.chess.com"]

[Event "Titled Tuesday Blitz January 10 Early 2023"]
[White "Mrudul Dehankar"]
[Black "Fajdetic, Hrvoje"]
[WhiteFideId "25096990"]
[BlackFideId "14501945"]
[WhiteElo "2030"]
[BlackElo "2151"]
[Result "0-1"]
[Round "07"]
[TimeControl "180+2"]
[Date "2023.01.10"]
[WhiteClock "0:00:01"]
[BlackClock "0:00:27"]

1. e4 {[%clk 0:02:57]}  c5 {[%clk 0:02:58]} 2. Nf3 {[%clk 0:02:57]}  a6 {[%clk 0:02:58]} 3. d4 {[%clk 0:02:58]}  cxd4 {[%clk 0:02:59]} 4. Nxd4 {[%clk 0:02:58]}  Nf6 {[%clk 0:03:00]} 5. Bd3 {[%clk 0:02:56]}  e5 {[%clk 0:02:58]} 6. Nf3 {[%clk 0:02:55]}  Nc6 {[%clk 0:02:56]} 7. c4 {[%clk 0:02:53]}  Bb4+ {[%clk 0:02:53]} 8. Bd2 {[%clk 0:02:50]}  Qa5 {[%clk 0:02:52]} 9. O-O {[%clk 0:02:48]}  O-O {[%clk 0:02:52]} 10. a3 {[%clk 0:02:42]}  Bxd2 {[%clk 0:02:51]} 11. Nfxd2 {[%clk 0:02:35]}  Nd4 {[%clk 0:02:49]} 12. Nc3 {[%clk 0:02:31]}  Qb6 {[%clk 0:02:34]} 13. b4 {[%clk 0:02:20]}  d6 {[%clk 0:02:32]} 14. Kh1 {[%clk 0:01:57]}  Be6 {[%clk 0:02:29]} 15. Nd5 {[%clk 0:01:54]}  Bxd5 {[%clk 0:02:29]} 16. cxd5 {[%clk 0:01:48]}  Rfc8 {[%clk 0:02:23]} 17. Nc4 {[%clk 0:01:46]}  Qd8 {[%clk 0:02:23]} 18. Ne3 {[%clk 0:01:45]}  Rc3 {[%clk 0:02:19]} 19. Bb1 {[%clk 0:01:16]}  Rac8 {[%clk 0:02:08]} 20. Ra2 {[%clk 0:01:16]}  g6 {[%clk 0:01:58]} 21. Qd2 {[%clk 0:00:43]}  Nh5 {[%clk 0:01:55]} 22. Nd1 {[%clk 0:00:35]}  Rc1 {[%clk 0:01:50]} 23. Ne3 {[%clk 0:00:33]}  Rxf1+ {[%clk 0:01:39]} 24. Nxf1 {[%clk 0:00:32]}  Nf4 {[%clk 0:01:37]} 25. g3 {[%clk 0:00:15]}  Nfe2 {[%clk 0:01:26]} 26. Rb2 {[%clk 0:00:08]}  Qf6 {[%clk 0:01:23]} 27. Qe3 {[%clk 0:00:08]}  Rc1 {[%clk 0:01:20]} 28. Kg2 {[%clk 0:00:08]}  Nc3 {[%clk 0:01:14]} 29. Bd3 {[%clk 0:00:08]}  Ra1 {[%clk 0:01:03]} 30. Qd2 {[%clk 0:00:07]}  Rxa3 {[%clk 0:00:57]} 31. f4 {[%clk 0:00:02]}  exf4 {[%clk 0:00:42]} 32. gxf4 {[%clk 0:00:03]}  Qh4 {[%clk 0:00:36]} 33. Ng3 {[%clk 0:00:03]}  Qg4 {[%clk 0:00:33]} 34. Qf2 {[%clk 0:00:02]}  Nd1 {[%clk 0:00:31]} 35. Be2 {[%clk 0:00:01]}  Nxf2 {[%clk 0:00:27]} 0-1


[Site "https://www.chess.com"]

[Event "Titled Tuesday Blitz January 10 Early 2023"]
[White "Flis, Pawel"]
[Black "Guimaraes, Wagner Peixoto"]
[WhiteFideId "1112864"]
[BlackFideId "2100940"]
[WhiteElo "1879"]
[BlackElo "2194"]
[Result "1/2-1/2"]
[Round "07"]
[TimeControl "180+2"]
[Date "2023.01.10"]
[WhiteClock "0:00:06"]
[BlackClock "0:00:08"]

1. e4 {[%clk 0:03:00]}  c5 {[%clk 0:02:54]} 2. d4 {[%clk 0:03:01]}  cxd4 {[%clk 0:02:54]} 3. Nf3 {[%clk 0:03:01]}  Nf6 {[%clk 0:02:54]} 4. e5 {[%clk 0:02:59]}  Nd5 {[%clk 0:02:54]} 5. Qxd4 {[%clk 0:03:00]}  e6 {[%clk 0:02:54]} 6. c4 {[%clk 0:02:58]}  Nb4 {[%clk 0:02:44]} 7. Qd1 {[%clk 0:02:57]}  d6 {[%clk 0:02:42]} 8. a3 {[%clk 0:02:57]}  N4c6 {[%clk 0:02:42]} 9. exd6 {[%clk 0:02:57]}  Qxd6 {[%clk 0:02:41]} 10. Qxd6 {[%clk 0:02:53]}  Bxd6 {[%clk 0:02:42]} 11. Nc3 {[%clk 0:02:53]}  O-O {[%clk 0:02:30]} 12. Nb5 {[%clk 0:02:47]}  Rd8 {[%clk 0:02:11]} 13. Nxd6 {[%clk 0:02:43]}  Rxd6 {[%clk 0:02:10]} 14. Bf4 {[%clk 0:02:43]}  e5 {[%clk 0:02:07]} 15. Be3 {[%clk 0:02:34]}  Bg4 {[%clk 0:02:04]} 16. Be2 {[%clk 0:02:34]}  Nd7 {[%clk 0:01:54]} 17. h3 {[%clk 0:02:32]}  Bxf3 {[%clk 0:01:51]} 18. Bxf3 {[%clk 0:02:31]}  Nd4 {[%clk 0:01:51]} 19. Bxd4 {[%clk 0:02:27]}  Rxd4 {[%clk 0:01:52]} 20. Be2 {[%clk 0:01:58]}  Nf6 {[%clk 0:01:38]} 21. O-O {[%clk 0:01:36]}  Rd2 {[%clk 0:01:36]} 22. Rfe1 {[%clk 0:01:33]}  e4 {[%clk 0:01:21]} 23. b4 {[%clk 0:01:23]}  h6 {[%clk 0:01:20]} 24. c5 {[%clk 0:01:23]}  Rad8 {[%clk 0:01:14]} 25. Rad1 {[%clk 0:01:16]}  Kf8 {[%clk 0:01:11]} 26. Rxd2 {[%clk 0:01:10]}  Rxd2 {[%clk 0:01:12]} 27. Bb5 {[%clk 0:00:56]}  Ra2 {[%clk 0:01:05]} 28. Re3 {[%clk 0:00:52]}  g6 {[%clk 0:00:48]} 29. c6 {[%clk 0:00:51]}  bxc6 {[%clk 0:00:48]} 30. Bxc6 {[%clk 0:00:52]}  Kg7 {[%clk 0:00:35]} 31. a4 {[%clk 0:00:51]}  Ra1+ {[%clk 0:00:32]} 32. Kh2 {[%clk 0:00:51]}  Rf1 {[%clk 0:00:32]} 33. Re2 {[%clk 0:00:39]}  Rb1 {[%clk 0:00:28]} 34. b5 {[%clk 0:00:34]}  Ra1 {[%clk 0:00:20]} 35. Bxe4 {[%clk 0:00:30]}  Rxa4 {[%clk 0:00:19]} 36. Bc6 {[%clk 0:00:29]}  Rb4 {[%clk 0:00:20]} 37. Re7 {[%clk 0:00:27]}  Rb2 {[%clk 0:00:17]} 38. f3 {[%clk 0:00:26]}  Nh5 {[%clk 0:00:15]} 39. Bd5 {[%clk 0:00:18]}  Rxb5 {[%clk 0:00:13]} 40. Rxf7+ {[%clk 0:00:18]}  Kh8 {[%clk 0:00:13]} 41. Bc4 {[%clk 0:00:16]}  Rc5 {[%clk 0:00:13]} 42. Ba6 {[%clk 0:00:15]}  Rc6 {[%clk 0:00:11]} 43. Rxa7 {[%clk 0:00:13]}  Nf4 {[%clk 0:00:11]} 44. Rf7 {[%clk 0:00:10]}  g5 {[%clk 0:00:11]} 45. Bf1 {[%clk 0:00:06]}  Rc1 {[%clk 0:00:10]} 46. Kg1 {[%clk 0:00:06]}  Rc2 {[%clk 0:00:10]} 47. Ra7 {[%clk 0:00:04]}  Kg8 {[%clk 0:00:09]} 48. Rb7 {[%clk 0:00:04]}  Kf8 {[%clk 0:00:09]} 49. Rh7 {[%clk 0:00:03]}  Rc6 {[%clk 0:00:08]} 50. Ra7 {[%clk 0:00:03]}  Kg8 {[%clk 0:00:08]} 51. Rb7 {[%clk 0:00:03]}  Kf8 {[%clk 0:00:08]} 52. Ra7 {[%clk 0:00:04]}  Rd6 {[%clk 0:00:08]} 53. Rb7 {[%clk 0:00:05]}  Rf6 {[%clk 0:00:08]} 54. Ra7 {[%clk 0:00:05]}  Rd6 {[%clk 0:00:08]} 55. Rb7 {[%clk 0:00:05]}  Rf6 {[%clk 0:00:08]} 56. Ra7 {[%clk 0:00:06]}  Rd6 {[%clk 0:00:08]} 1/2-1/2


[Site "https://www.chess.com"]

[Event "Titled Tuesday Blitz January 10 Early 2023"]
[White "Joubert, Dantelle"]
[Black "Bashirli, Saadat"]
[WhiteFideId "14310813"]
[BlackFideId "13429990"]
[WhiteElo "1566"]
[BlackElo "1571"]
[Result "1-0"]
[Round "07"]
[TimeControl "180+2"]
[Date "2023.01.10"]
[WhiteClock "0:00:11"]
[BlackClock "0:00:11"]

1. d4 {[%clk 0:03:00]}  d5 {[%clk 0:02:56]} 2. c4 {[%clk 0:02:57]}  e6 {[%clk 0:02:57]} 3. Nf3 {[%clk 0:02:57]}  c6 {[%clk 0:02:57]} 4. Qc2 {[%clk 0:02:55]}  dxc4 {[%clk 0:02:57]} 5. Qxc4 {[%clk 0:02:54]}  b5 {[%clk 0:02:58]} 6. Qc2 {[%clk 0:02:49]}  Bb7 {[%clk 0:02:58]} 7. g3 {[%clk 0:02:49]}  Nf6 {[%clk 0:02:57]} 8. Bg2 {[%clk 0:02:49]}  Bb4+ {[%clk 0:02:56]} 9. Bd2 {[%clk 0:02:48]}  Bxd2+ {[%clk 0:02:55]} 10. Nbxd2 {[%clk 0:02:49]}  Nbd7 {[%clk 0:02:55]} 11. O-O {[%clk 0:02:49]}  O-O {[%clk 0:02:54]} 12. Rac1 {[%clk 0:02:41]}  Rc8 {[%clk 0:02:53]} 13. Nb3 {[%clk 0:02:40]}  Qe7 {[%clk 0:02:48]} 14. Qc3 {[%clk 0:02:15]}  Nd5 {[%clk 0:02:45]} 15. Qa5 {[%clk 0:02:12]}  a6 {[%clk 0:02:44]} 16. e4 {[%clk 0:02:10]}  N5b6 {[%clk 0:02:40]} 17. Qc3 {[%clk 0:01:44]}  Nc4 {[%clk 0:02:34]} 18. e5 {[%clk 0:01:35]}  Ndb6 {[%clk 0:02:33]} 19. Nc5 {[%clk 0:01:34]}  Nd5 {[%clk 0:02:32]} 20. Qc2 {[%clk 0:01:31]}  a5 {[%clk 0:02:27]} 21. b3 {[%clk 0:01:30]}  Ncb6 {[%clk 0:02:27]} 22. h4 {[%clk 0:01:27]}  Ba8 {[%clk 0:02:18]} 23. Ng5 {[%clk 0:01:22]}  g6 {[%clk 0:02:16]} 24. Nge4 {[%clk 0:01:21]}  Rfd8 {[%clk 0:02:10]} 25. Qd2 {[%clk 0:01:16]}  Kg7 {[%clk 0:02:06]} 26. Qxa5 {[%clk 0:01:13]}  Rc7 {[%clk 0:01:51]} 27. Qd2 {[%clk 0:01:11]}  Ra7 {[%clk 0:01:48]} 28. Rfd1 {[%clk 0:01:08]}  Bb7 {[%clk 0:01:36]} 29. h5 {[%clk 0:01:03]}  Rda8 {[%clk 0:01:32]} 30. hxg6 {[%clk 0:00:51]}  hxg6 {[%clk 0:01:30]} 31. Nxb7 {[%clk 0:00:46]}  Qxb7 {[%clk 0:01:28]} 32. Qg5 {[%clk 0:00:35]}  Rxa2 {[%clk 0:01:18]} 33. Nf6 {[%clk 0:00:32]}  Rh8 {[%clk 0:01:07]} 34. g4 {[%clk 0:00:28]}  Rb2 {[%clk 0:00:59]} 35. Bxd5 {[%clk 0:00:22]}  Nxd5 {[%clk 0:00:56]} 36. Nxd5 {[%clk 0:00:21]}  cxd5 {[%clk 0:00:57]} 37. Qf6+ {[%clk 0:00:20]}  Kg8 {[%clk 0:00:53]} 38. Rc5 {[%clk 0:00:18]}  Kh7 {[%clk 0:00:23]} 39. Qh4+ {[%clk 0:00:15]}  Kg7 {[%clk 0:00:22]} 40. Qf6+ {[%clk 0:00:15]}  Kh7 {[%clk 0:00:23]} 41. Rd3 {[%clk 0:00:14]}  Rb1+ {[%clk 0:00:22]} 42. Kg2 {[%clk 0:00:13]}  Kg8 {[%clk 0:00:16]} 43. Rdc3 {[%clk 0:00:13]}  Kh7 {[%clk 0:00:11]} 44. Rh3+ {[%clk 0:00:11]} 1-0


[Site "https://www.chess.com"]

[Event "Titled Tuesday Blitz January 10 Early 2023"]
[White "De Souza, Cristiano Gomes"]
[Black "Kleiman, Jake"]
[WhiteFideId "2151758"]
[BlackFideId "2020041"]
[WhiteElo "2018"]
[BlackElo "2399"]
[Result "0-1"]
[Round "07"]
[TimeControl "180+2"]
[Date "2023.01.10"]
[WhiteClock "0:00:52"]
[BlackClock "0:00:20"]

1. d4 {[%clk 0:02:59]}  Nf6 {[%clk 0:02:56]} 2. c4 {[%clk 0:02:59]}  e6 {[%clk 0:02:57]} 3. Nf3 {[%clk 0:02:59]}  Bb4+ {[%clk 0:02:58]} 4. Bd2 {[%clk 0:02:59]}  Bxd2+ {[%clk 0:02:58]} 5. Nbxd2 {[%clk 0:02:59]}  O-O {[%clk 0:02:58]} 6. e4 {[%clk 0:02:59]}  d6 {[%clk 0:02:59]} 7. Bd3 {[%clk 0:02:59]}  e5 {[%clk 0:02:59]} 8. d5 {[%clk 0:02:58]}  a5 {[%clk 0:02:58]} 9. b3 {[%clk 0:02:56]}  Na6 {[%clk 0:02:59]} 10. O-O {[%clk 0:02:55]}  Nc5 {[%clk 0:02:59]} 11. Bc2 {[%clk 0:02:54]}  Bg4 {[%clk 0:03:00]} 12. h3 {[%clk 0:02:54]}  Bxf3 {[%clk 0:03:00]} 13. Qxf3 {[%clk 0:02:54]}  g6 {[%clk 0:02:59]} 14. a3 {[%clk 0:02:48]}  Qe7 {[%clk 0:02:57]} 15. b4 {[%clk 0:02:48]}  axb4 {[%clk 0:02:57]} 16. axb4 {[%clk 0:02:49]}  Ncd7 {[%clk 0:02:58]} 17. Qc3 {[%clk 0:02:44]}  Nh5 {[%clk 0:02:54]} 18. g3 {[%clk 0:02:41]}  f5 {[%clk 0:02:52]} 19. Rxa8 {[%clk 0:02:36]}  Rxa8 {[%clk 0:02:53]} 20. Ra1 {[%clk 0:02:36]}  Rxa1+ {[%clk 0:02:41]} 21. Qxa1 {[%clk 0:02:31]}  Qg5 {[%clk 0:02:00]} 22. Nf1 {[%clk 0:02:26]}  f4 {[%clk 0:01:43]} 23. g4 {[%clk 0:02:24]}  Nhf6 {[%clk 0:01:43]} 24. Qa8+ {[%clk 0:02:20]}  Kg7 {[%clk 0:01:43]} 25. Qxb7 {[%clk 0:02:19]}  Qh4 {[%clk 0:01:35]} 26. Nh2 {[%clk 0:01:57]}  Qxh3 {[%clk 0:00:43]} 27. Qxc7 {[%clk 0:01:55]}  f3 {[%clk 0:00:40]} 28. Nxf3 {[%clk 0:01:46]}  Qxf3 {[%clk 0:00:41]} 29. Qxd6 {[%clk 0:01:38]}  Qxg4+ {[%clk 0:00:41]} 30. Kf1 {[%clk 0:01:38]}  Qf4 {[%clk 0:00:36]} 31. Bd3 {[%clk 0:01:29]}  Qf3 {[%clk 0:00:27]} 32. Bc2 {[%clk 0:01:00]}  Qc3 {[%clk 0:00:22]} 33. Bd1 {[%clk 0:00:56]}  Qxc4+ {[%clk 0:00:22]} 34. Kg1 {[%clk 0:00:52]}  Qc1 {[%clk 0:00:20]} 0-1


[Site "https://www.chess.com"]